bitfinex/quotes_SOLUSD_20240717
["timestamp","ask_amount","ask_price","bid_price","bid_amount"]
[1721217061949,1.55167922,161.14,161.1,1.13142821]
[1721217062542,1.55167922,161.14,161.08,0.17]
[1721217062848,1.55167922,161.14,161.09,10.0]
[1721217063160,1.55167922,161.14,161.1,1.30134144]
[1721217063659,1.55167922,161.14,161.1,0.34]
[1721217064953,1.55167922,161.14,161.1,1.30120789]
[1721217065852,1.55167922,161.14,161.1,0.17]
[1721217066067,1.55167922,161.14,161.09,10.0]
[1721217069052,1.55167922,161.14,161.1,1.13132576]
[1721217069645,1.55160902,161.14,161.11,10.0]
[1721217071751,1.55160902,161.14,161.1,0.17]
[1721217072054,1.55160902,161.14,161.1,0.34]
[1721217072234,1.55160902,161.14,161.1,0.17]
[1721217073251,1.55160902,161.14,161.09,10.0]
[1721217073642,6.2066,161.12,161.07,10.0]
[1721217073839,22.6966,161.1,161.05,10.0]
[1721217074054,1.55221985,161.09,161.05,10.0]
[1721217074938,1.55221985,161.09,161.02,6.48917717]
[1721217075167,1.55221985,161.09,161.04,10.0]
[1721217075863,1.55221985,161.09,161.02,6.48917717]
[1721217076248,1.55221985,161.09,161.01,0.17]
[1721217076453,1.55221985,161.09,160.99,10.0]
[1721217076670,31.13221985,161.09,161.0,7.45859571]
[1721217076986,31.13221985,161.09,160.99,10.0]
[1721217077272,12.301,161.07,160.99,10.0]
[1721217077489,1.55261489,161.06,160.99,10.0]
[1721217078187,1.55261489,161.06,160.99,10.96347983]
[1721217078356,23.02645975,161.07,161.02,10.0]
[1721217078863,23.02645975,161.07,161.05,10.0]
[1721217078864,21.474,161.07,161.05,10.0]
[1721217079255,21.474,161.07,161.05,10.96241076]
[1721217079256,15.3814,161.07,161.05,10.96241076]
[1721217079455,1.21033634,161.1,161.06,0.34]
[1721217079861,23.1118,161.11,161.07,10.0]
[1721217080064,23.1118,161.11,161.08,0.17]
[1721217080281,23.1118,161.11,161.09,10.0]
[1721217080478,23.1118,161.11,161.1,0.17]
[1721217080777,23.1118,161.11,161.1,10.0]
[1721217080778,16.614,161.11,161.1,10.0]
[1721217080963,23.18994982,161.15,161.12,10.0]
[1721217081169,21.6382,161.15,161.13,0.17]
[1721217081864,1.55145218,161.14,161.1,10.17]
[1721217082065,21.6382,161.15,161.12,10.0]
[1721217082677,21.6382,161.15,161.13,0.17]
[1721217084053,21.6382,161.15,161.13,1.13063037]
[1721217084256,21.6382,161.15,161.13,0.17]
[1721217085159,1.55150645,161.14,161.1,10.0]
[1721217085361,21.6382,161.15,161.12,10.0]
[1721217085886,21.6382,161.15,161.13,0.17]
[1721217087564,1.55146684,161.14,161.1,10.0]
[1721217087760,1.55146684,161.14,161.09,0.34]
[1721217087966,1.55146684,161.14,161.09,0.17]
[1721217088165,1.55146684,161.14,161.06,10.0]
[1721217088670,1.55146684,161.14,161.02,16.48633076]
[1721217088671,6.2069,161.11,161.02,16.48633076]
[1721217088868,21.2642,161.09,161.02,10.0]
[1721217089091,1.55235301,161.08,161.02,10.0]
[1721217089383,1.55232325,161.07,161.02,10.0]
[1721217090181,1.55230451,161.08,161.02,10.0]
[1721217090366,1.55234122,161.07,161.03,0.34]
[1721217091179,1.55234122,161.07,161.02,10.0]
[1721217091485,1.55234122,161.07,161.0,10.0]
[1721217091695,1.55234122,161.07,160.98,10.0]
[1721217092494,1.55234122,161.07,161.0,10.0]
[1721217092678,1.55234122,161.07,160.98,10.0]
[1721217092874,1.55234122,161.07,160.99,45.34]
[1721217093389,7.76084122,161.07,160.99,45.34]
[1721217093573,7.76084122,161.07,160.99,0.34]
[1721217093773,7.76084122,161.07,161.0,10.0]
[1721217093967,1.55234122,161.07,161.0,10.0]
[1721217094664,1.55234122,161.07,161.01,0.17]
[1721217094991,1.55234122,161.07,161.02,10.0]
[1721217095493,1.21033592,161.06,161.02,10.0]
[1721217095795,1.55245748,161.08,161.02,10.0]
[1721217096092,1.5524573,161.07,161.02,10.0]
[1721217098387,1.5524573,161.07,161.01,0.17]
[1721217098695,1.5524573,161.07,161.01,1.30316574]
[1721217099470,1.5524573,161.07,161.01,0.34]
[1721217099793,1.5524573,161.07,161.01,1.30324446]
[1721217100687,1.5525167,161.08,161.02,10.0]
[1721217100888,1.55235373,161.07,161.03,0.17]
[1721217101884,1.21036769,161.06,161.03,0.17]
[1721217102088,1.5524271,161.08,161.03,0.17]
[1721217102282,1.55242951,161.07,161.03,0.17]
[1721217102689,1.55242951,161.07,161.03,0.34]
[1721217103372,1.55236934,161.06,161.03,0.34]
[1721217103686,1.55237172,161.08,161.03,0.34]
[1721217103888,1.5523307,161.07,161.03,0.34]
[1721217104893,1.55232276,161.06,161.03,0.34]
[1721217105074,1.55237092,161.08,161.02,0.34]
[1721217105272,1.55238011,161.07,161.02,0.34]
[1721217107392,1.55243012,161.06,161.02,10.34]
[1721217107596,1.55242744,161.08,161.02,10.34]
[1721217107804,1.55244796,161.07,161.02,0.34]
[1721217107976,1.55244796,161.07,161.02,0.17]
[1721217108180,1.55244796,161.07,161.01,0.34]
[1721217108394,1.55244796,161.07,161.02,10.0]
[1721217110680,1.55243635,161.08,161.02,10.0]
[1721217110888,1.55226574,161.07,161.04,10.0]
[1721217111391,1.55226574,161.07,161.0,10.0]
[1721217111589,22.0204,161.06,160.97,6.48864794]
[1721217111794,7.76222413,161.05,160.97,17.45248211]
[1721217111987,1.55289883,161.04,160.97,10.96383417]
[1721217112188,1.55289883,161.04,160.97,10.0]
[1721217112902,1.55289883,161.04,160.98,0.17]
[1721217114293,1.20989726,161.03,160.99,10.0]
[1721217114492,1.55259953,161.05,161.01,10.0]
[1721217114681,1.55251049,161.05,161.01,10.0]
[1721217114880,1.55251555,161.04,161.01,10.0]
[1721217115504,1.55257937,161.05,161.01,10.0]
[1721217115704,22.0204,161.06,161.02,0.34]
[1721217115891,1.55247314,161.05,161.02,0.34]
[1721217116078,1.55247338,161.04,161.02,0.34]
[1721217116499,1.55247338,161.04,160.99,10.0]
[1721217116678,1.55247338,161.04,161.0,0.34]
[1721217117081,1.55265695,161.05,161.0,0.34]
[1721217117299,1.55265695,161.04,161.0,0.17]
[1721217117806,1.55265695,161.04,161.0,0.34]
[1721217118007,1.55266192,161.05,161.01,10.96350892]
[1721217118378,22.0204,161.06,161.03,10.0]
[1721217118606,22.2328,161.1,161.05,10.0]
[1721217118785,22.2328,161.1,161.06,0.17]
[1721217119187,22.2328,161.1,161.06,0.34]
[1721217119390,22.2328,161.1,161.06,1.30212125]
[1721217119783,1.55202884,161.09,161.06,0.34]
[1721217120306,1.55202884,161.09,161.06,0.17]
[1721217121488,22.2328,161.1,161.07,10.0]
[1721217122195,22.2328,161.1,161.09,10.0]
[1721217122196,15.8685,161.1,161.09,10.0]
[1721217122396,29.58,161.17,161.09,10.0]
[1721217122397,23.51341845,161.14,161.09,10.34]
[1721217122603,21.9616,161.14,161.1,0.34]
[1721217123313,1.55167618,161.13,161.1,0.34]
[1721217123612,21.9616,161.14,161.1,0.34]
[1721217123913,21.9616,161.14,161.11,10.0]
[1721217125009,1.55158071,161.17,161.12,0.96089132]
[1721217125204,1.55158071,161.17,161.12,0.17]
[1721217125421,1.55158071,161.17,161.12,0.34]
[1721217125717,1.55158071,161.17,161.11,10.0]
[1721217126411,7.75618071,161.17,161.1,0.34]
[1721217126596,6.205,161.16,161.1,0.34]
[1721217126790,1.5517162,161.15,161.1,0.34]
[1721217126999,1.55168161,161.14,161.1,0.34]
[1721217127202,1.55167777,161.16,161.1,0.34]
[1721217127624,1.55167777,161.16,161.11,10.0]
[1721217127792,1.55167777,161.16,161.12,0.17]
[1721217128195,1.5515535,161.15,161.12,0.17]
[1721217128408,1.55155332,161.17,161.12,0.17]
[1721217129095,1.55155332,161.17,161.12,0.34]
[1721217129616,1.55155332,161.17,161.13,10.0]
[1721217131120,1.21124277,161.16,161.08,0.96051481]
[1721217131325,7.41644277,161.16,161.07,10.0]
[1721217131625,1.21124277,161.16,161.07,10.0]
[1721217131827,1.21124277,161.16,161.09,10.0]
[1721217132631,6.2058,161.14,161.08,0.17]
[1721217132799,6.2076,161.1,161.02,2.35117921]
[1721217132995,1.55220205,161.09,161.03,10.0]
[1721217133201,7.75990205,161.09,161.02,2.35117921]
[1721217133800,1.55220205,161.09,161.02,2.35117921]
[1721217134513,1.55220205,161.09,160.93,1.4736]
[1721217134514,29.58,161.07,160.95,10.0]
[1721217134813,29.58,161.07,160.96,30.0]
[1721217134814,6.2101,161.03,160.96,30.0]
[1721217135010,1.55303934,161.02,160.95,16.49231731]
[1721217135208,1.55306346,161.01,160.95,16.49231731]
[1721217135803,8.03526346,161.01,160.95,16.49231731]
[1721217136003,8.03526346,161.01,160.96,0.17]
[1721217136203,8.03526346,161.01,160.96,0.34]
[1721217136399,1.20973263,161.0,160.96,0.34]
[1721217137121,1.20973263,161.0,160.96,0.17]
[1721217137336,1.20973263,161.0,160.93,10.0]
[1721217137518,1.20973263,161.0,160.94,45.17]
[1721217137907,1.20973263,161.0,160.95,10.0]
[1721217138232,1.20973263,161.0,160.96,0.17]
[1721217138526,1.20973263,161.0,160.96,0.34]
[1721217140605,1.20973263,161.0,160.95,0.34]
[1721217142124,1.20973263,161.0,160.95,10.34]
[1721217142321,1.20973263,161.0,160.95,0.34]
[1721217143425,1.20973263,161.0,160.95,10.34]
[1721217143818,1.20973263,161.0,160.96,0.96458063]
[1721217144131,1.20973263,161.0,160.96,0.96442076]
[1721217144544,6.4822,161.01,160.97,10.0]
[1721217144730,6.4822,161.01,160.97,10.17]
[1721217145031,1.55294429,161.0,160.97,10.17]
[1721217145406,6.4822,161.01,160.97,10.17]
[1721217146229,1.55288891,161.0,160.97,10.17]
[1721217146637,6.4822,161.01,160.97,10.17]
[1721217147428,1.55288046,161.0,160.97,10.17]
[1721217147630,1.55290825,161.0,160.97,10.17]
[1721217147810,6.4822,161.01,160.97,10.17]
[1721217150232,6.4822,161.01,160.98,0.17]
[1721217150638,1.55286002,161.0,160.97,10.17]
[1721217151114,6.4822,161.01,160.97,10.17]
[1721217151315,1.55290844,161.0,160.97,10.17]
[1721217153011,1.55290844,161.0,160.97,0.17]
[1721217153215,1.55290844,161.0,160.96,0.34]
[1721217154618,16.2471,160.99,160.94,6.49243085]
[1721217154938,1.55330604,160.98,160.94,6.49243085]
[1721217155236,1.55330604,160.98,160.95,10.0]
[1721217155635,1.55330604,160.98,160.94,6.49243085]
[1721217159234,1.55330604,160.98,160.95,10.0]
[1721217159435,1.55310506,160.98,160.95,10.0]
[1721217159636,17.80020506,160.99,160.96,0.17]
[1721217159935,17.80020506,160.99,160.96,0.34]
[1721217160639,16.2471,160.99,160.96,0.34]
[1721217163026,16.2471,160.99,160.98,10.0]
[1721217163228,16.2471,160.99,160.98,10.34]
[1721217163943,6.4822,161.01,160.98,10.34]
[1721217164128,6.4822,161.01,160.99,1.1338264]
[1721217164330,6.4822,161.01,161.0,10.0]
[1721217164634,15.067,161.03,161.0,10.17]
[1721217168064,15.067,161.03,161.01,0.17]
[1721217168262,15.067,161.03,161.01,0.34]
[1721217169060,15.067,161.03,161.0,10.0]
[1721217169963,15.067,161.03,161.01,0.34]
[1721217174969,1.55266163,161.02,160.98,10.0]
[1721217175164,1.55267151,161.01,160.99,0.17]
[1721217175366,14.83,161.0,160.96,6.48699194]
[1721217175549,16.38302168,160.99,160.96,6.48699194]
[1721217175748,14.83,161.0,160.96,10.0]
[1721217175963,1.55307578,161.02,160.96,10.0]
[1721217175964,14.83,161.01,160.96,10.0]
[1721217176260,1.55301393,161.0,160.96,10.0]
[1721217177146,16.38301393,161.0,160.97,0.17]
[1721217177347,1.5530162,160.99,160.97,0.17]
[1721217177546,1.5530162,160.99,160.96,0.34]
[1721217177756,1.5530162,160.99,160.96,0.17]
[1721217178366,14.83,161.0,160.96,10.17]
[1721217178566,14.83,161.0,160.97,0.17]
[1721217179365,1.5530129,160.99,160.97,0.17]
[1721217179667,14.83,161.01,160.96,10.34]
[1721217179851,1.55300794,161.0,160.96,10.34]
[1721217180241,1.55300737,161.01,160.98,10.0]
[1721217182247,31.44977374,161.03,160.99,0.34]
[1721217182657,16.61977374,161.03,160.97,10.0]
[1721217182859,16.61977374,161.03,160.98,0.17]
[1721217183066,14.83,160.99,160.93,16.48862619]
[1721217183258,14.83,160.97,160.94,30.0]
[1721217183451,14.83,160.97,160.93,16.48862619]
[1721217183868,14.83,160.98,160.93,16.48862619]
[1721217184072,1.55324802,160.97,160.93,16.48862619]
[1721217184258,16.38324802,160.97,160.93,16.48862619]
[1721217184451,14.83,160.97,160.93,16.48862619]
[1721217184653,14.83,160.97,160.94,0.34]
[1721217185552,14.83,160.97,160.93,16.48862619]
[1721217185868,1.55324031,160.96,160.93,16.48862619]
[1721217186480,1.55334205,161.02,160.93,16.48862619]
[1721217186653,44.747,161.03,160.93,16.48862619]
[1721217186654,1.55334205,161.01,160.93,16.48862619]
[1721217187074,6.1363,161.0,160.93,16.48862619]
[1721217187295,15.0405,160.98,160.88,20.0]
[1721217187586,31.23360144,160.97,160.88,10.0]
[1721217189077,31.23360144,160.97,160.89,0.34]
[1721217189382,6.5918,160.96,160.84,12.21651878]
[1721217189551,29.68,160.94,160.85,10.0]
[1721217189750,6.2195,160.92,160.85,10.0]
[1721217189955,1.55419516,160.91,160.85,10.0]
[1721217190771,1.55419516,160.91,160.83,10.0]
[1721217191182,1.55419516,160.91,160.81,10.0]
[1721217191486,45.0668,160.9,160.81,10.0]
[1721217191779,1.55438947,160.89,160.81,10.0]
[1721217192789,1.55438947,160.89,160.79,2.21621822]
[1721217192790,6.5846,160.86,160.79,10.0]
[1721217193095,1.55463314,160.85,160.77,10.0]
[1721217193453,15.5231,160.84,160.77,16.49621504]
[1721217193653,1.55473855,160.83,160.79,10.0]
[1721217193858,1.55473675,160.83,160.79,10.0]
[1721217194084,17.07772944,160.84,160.79,10.0]
[1721217194678,15.5231,160.84,160.81,10.0]
[1721217194882,1.5544475,160.83,160.82,0.34]
[1721217195078,15.5231,160.84,160.8,0.34]
[1721217195285,15.5231,160.84,160.81,10.0]
[1721217195490,15.5231,160.84,160.82,0.34]
[1721217196684,1.55450507,160.83,160.82,0.17]
[1721217196889,1.55450507,160.83,160.79,10.0]
[1721217197097,1.55450507,160.83,160.8,0.34]
[1721217197386,1.55466717,160.82,160.8,0.34]
[1721217197605,1.55473701,160.83,160.79,10.0]
[1721217197980,17.07769228,160.84,160.79,10.0]
[1721217198176,17.07769228,160.84,160.81,10.0]
[1721217198378,17.07769228,160.84,160.82,0.34]
[1721217198687,17.07769228,160.84,160.79,10.0]
[1721217198882,1.20813573,160.83,160.8,0.34]
[1721217199281,15.5231,160.84,160.81,10.0]
[1721217199495,15.5231,160.84,160.82,0.34]
[1721217200204,6.5846,160.86,160.83,10.0]
[1721217200538,18.04976859,160.88,160.83,10.0]
[1721217201097,18.04976859,160.88,160.82,0.34]
[1721217201282,18.04976859,160.88,160.81,45.34]
[1721217202279,18.04976859,160.88,160.81,0.34]
[1721217202697,24.26556859,160.88,160.81,0.34]
[1721217202880,18.04976859,160.88,160.81,0.34]
[1721217205391,18.04976859,160.88,160.81,10.34]
[1721217205593,18.04976859,160.88,160.83,10.0]
[1721217205989,18.04976859,160.88,160.81,10.34]
[1721217207004,18.04976859,160.88,160.83,10.0]
[1721217207209,18.04976859,160.88,160.81,0.34]
[1721217207580,24.26556859,160.88,160.81,0.34]
[1721217207777,18.04976859,160.88,160.81,0.34]
[1721217208208,14.86,160.85,160.81,0.34]
[1721217208505,14.86,160.84,160.81,0.34]
[1721217208683,14.86,160.85,160.81,0.34]
[1721217208890,16.41449516,160.84,160.81,0.34]
[1721217209094,14.86,160.84,160.81,0.34]
[1721217209497,14.86,160.85,160.81,0.34]
[1721217209699,14.86,160.86,160.83,10.0]
[1721217209900,14.86,160.85,160.81,55.34]
[1721217210202,1.55440837,160.86,160.81,10.34]
[1721217210410,1.55445184,160.85,160.81,11.30788832]
[1721217210609,1.55445184,160.85,160.81,26.16788832]
[1721217210903,1.55445184,160.85,160.79,10.0]
[1721217211510,14.86,160.83,160.79,10.0]
[1721217211695,7.77096997,160.87,160.79,10.0]
[1721217211909,1.55466997,160.87,160.81,10.0]
[1721217212119,14.86,160.84,160.81,10.0]
[1721217212413,14.86,160.85,160.81,10.0]
[1721217212604,1.55451147,160.84,160.81,10.0]
[1721217212801,16.41451147,160.84,160.81,10.0]
[1721217212991,1.55451121,160.83,160.8,0.34]
[1721217213191,14.86,160.84,160.81,10.0]
[1721217213410,1.55455553,160.86,160.83,10.0]
[1721217213707,31.3554,160.88,160.85,10.0]
[1721217213921,16.4954,160.88,160.85,10.0]
[1721217214096,18.04952629,160.88,160.85,10.0]
[1721217214916,32.90952629,160.88,160.85,10.0]
[1721217215684,14.86,160.87,160.84,0.34]
[1721217215990,6.2166,160.86,160.77,12.2165886]
[1721217216195,1.55469667,160.85,160.78,10.0]
[1721217216395,14.86,160.82,160.77,2.2165886]
[1721217216702,1.55474146,160.81,160.77,2.2165886]
[1721217216900,14.86,160.82,160.78,10.0]
[1721217217813,14.86,160.83,160.8,10.0]
[1721217218017,14.86,160.84,160.8,10.0]
[1721217218194,14.86,160.84,160.81,0.17]
[1721217218811,14.86,160.85,160.81,0.17]
[1721217218990,14.86,160.86,160.81,0.34]
[1721217219192,1.55444619,160.85,160.81,0.34]
[1721217220200,14.86,160.86,160.82,10.0]
[1721217220398,16.41437055,160.87,160.83,0.34]
[1721217220593,1.55437055,160.87,160.84,10.0]
[1721217220806,16.4954,160.88,160.84,10.0]
[1721217220807,32.90978206,160.88,160.84,10.0]
[1721217221206,32.90978206,160.88,160.85,0.34]
[1721217221815,14.86,160.87,160.82,20.0]
[1721217221996,14.86,160.87,160.84,10.0]
[1721217222305,31.3554,160.88,160.85,0.34]
[1721217222514,32.90958899,160.88,160.85,0.34]
[1721217222698,18.04958899,160.88,160.85,0.34]
[1721217223514,16.4954,160.88,160.85,0.34]
[1721217223702,29.5735891,160.93,160.85,1.30702185]
[1721217223914,14.86,160.9,160.85,0.34]
[1721217224114,14.86,160.88,160.85,0.34]
[1721217224625,26.2142,160.92,160.85,0.34]
[1721217224626,16.41407651,160.87,160.85,0.34]
[1721217224828,16.41421881,160.86,160.85,0.34]
[1721217225120,14.86,160.86,160.85,0.34]
[1721217225796,14.86,160.86,160.82,10.0]
[1721217226320,1.55435825,160.88,160.83,0.34]
[1721217226523,1.55435825,160.88,160.83,0.17]
[1721217227217,1.55436494,160.89,160.83,0.17]
[1721217227403,1.20843115,160.88,160.83,0.17]
[1721217227728,1.20843115,160.88,160.83,0.34]
[1721217228317,1.5543528,160.87,160.83,0.34]
[1721217228528,1.5543532,160.9,160.83,0.34]
[1721217228696,1.55418817,160.89,160.84,10.0]
[1721217228898,1.55418817,160.89,160.85,0.34]
[1721217230312,1.20860792,160.88,160.85,0.34]
[1721217230516,1.55418759,160.91,160.85,0.34]
[1721217230715,7.76878759,160.91,160.85,0.34]
[1721217230920,1.55418759,160.91,160.85,0.34]
[1721217233732,1.55418759,160.91,160.85,10.34]
[1721217234024,1.55388242,160.92,160.87,10.0]
[1721217234231,1.55388242,160.92,160.88,0.34]
[1721217234624,1.55388242,160.92,160.89,10.0]
[1721217234928,21.8055,160.93,160.9,0.34]
[1721217235130,15.3152,160.93,160.91,10.0]
[1721217235334,1.55355534,160.92,160.88,10.0]
[1721217235645,6.2132,160.95,160.89,0.34]
[1721217235930,1.55381437,160.94,160.89,0.34]
[1721217237642,6.2128,160.96,160.89,0.34]
[1721217237643,1.55365125,160.93,160.89,0.34]
[1721217237934,1.55364692,160.95,160.89,0.34]
[1721217238508,1.55364692,160.95,160.89,10.34]
[1721217238709,1.55352737,160.94,160.91,10.0]
[1721217238922,1.5535554,160.96,160.91,10.0]
[1721217239118,1.55355621,160.95,160.91,10.0]
[1721217239331,1.55355621,160.95,160.89,10.34]
[1721217240321,1.20916172,160.94,160.91,10.0]
[1721217240533,1.55355442,160.96,160.91,10.0]
[1721217240739,1.55340449,160.95,160.92,0.34]
[1721217241119,1.55340449,160.95,160.92,0.17]
[1721217241339,1.55340449,160.95,160.89,10.0]
[1721217241546,1.55340449,160.95,160.91,10.0]
[1721217241721,1.55353606,160.94,160.91,10.0]
[1721217241933,1.55353548,160.96,160.91,10.0]
[1721217242235,1.55353548,160.95,160.91,10.0]
[1721217243042,1.55353465,160.94,160.9,0.34]
[1721217243353,1.55353586,160.96,160.9,45.34]
[1721217243560,1.55353571,160.95,160.91,10.0]
[1721217243854,1.55353571,160.95,160.92,0.17]
[1721217244035,1.55353571,160.95,160.92,0.34]
[1721217244425,1.55346537,160.96,160.92,0.34]
[1721217244629,1.55342317,160.95,160.92,0.34]
[1721217244839,1.55343505,160.96,160.92,0.34]
[1721217245026,1.55342206,160.95,160.92,0.34]
[1721217245245,1.55327053,160.99,160.94,10.0]
[1721217245456,1.55325273,160.98,160.95,0.34]
[1721217245629,21.7545,161.01,160.95,0.34]
[1721217245630,1.55317714,161.0,160.95,0.34]
[1721217246358,1.55317714,161.0,160.96,10.0]
[1721217246743,15.5197,161.09,160.96,10.0]
[1721217246744,1.55303379,161.03,160.98,10.0]
[1721217247050,282.5174,161.07,160.98,10.0]
[1721217247051,1.55276802,161.06,160.99,0.34]
[1721217247433,6.2092,161.05,160.99,0.34]
[1721217247632,1.55282794,161.04,160.99,0.34]
[1721217248130,1.55282794,161.04,160.99,1.3037032]
[1721217248336,14.83,161.03,160.99,0.34]
[1721217248552,14.83,161.03,160.97,14.83]
[1721217248553,1.55271224,161.02,160.97,14.83]
[1721217248751,16.38294289,161.01,160.98,0.17]
[1721217248939,14.83,161.02,160.98,10.0]
[1721217249255,1.5528321,161.01,160.99,0.34]
[1721217249458,16.3828321,161.01,160.99,0.34]
[1721217249652,14.83,161.01,160.99,0.34]
[1721217250250,1.55284078,161.04,161.0,10.0]
[1721217250564,14.83,161.03,161.01,0.17]
[1721217250741,1.55270552,161.05,160.99,0.34]
[1721217251054,16.38260294,161.04,161.0,10.0]
[1721217251360,16.38262127,161.03,161.01,0.34]
[1721217251659,1.55270578,161.02,160.99,10.17]
[1721217251839,14.83,161.03,161.0,0.17]
[1721217252046,1.55268526,161.06,161.0,0.17]
[1721217252047,14.83,161.04,161.0,0.17]
[1721217252246,1.5526184,161.03,161.0,0.17]
[1721217252653,14.83,161.04,161.01,10.0]
[1721217254145,1.55259691,161.06,161.02,0.34]
[1721217254333,16.38259691,161.06,161.02,0.34]
[1721217258351,14.83,161.05,161.02,0.34]
[1721217258846,1.55259691,161.06,161.02,0.34]
[1721217258847,16.38259691,161.06,161.02,0.34]
[1721217259242,14.83,161.04,161.02,0.34]
[1721217259469,16.38251629,161.03,160.96,10.0]
[1721217259775,16.38251629,161.03,160.93,10.0]
[1721217259776,14.83,160.98,160.93,10.0]
[1721217260684,14.83,160.98,160.95,10.0]
[1721217260844,14.83,160.98,160.94,30.0]
[1721217261047,16.38314576,160.97,160.94,30.0]
[1721217261354,16.38326782,160.96,160.91,16.4884049]
[1721217261552,14.83,160.96,160.93,10.0]
[1721217262265,14.83,160.98,160.95,10.0]
[1721217262468,16.38315339,160.98,160.95,10.0]
[1721217262678,14.83,160.98,160.95,10.0]
[1721217264065,14.83,160.97,160.94,0.34]
[1721217264255,16.38328287,160.96,160.91,31.3184049]
[1721217264460,14.83,160.96,160.93,10.0]
[1721217264661,14.83,160.96,160.92,45.34]
[1721217264858,14.83,160.96,160.93,10.0]
[1721217265345,1.55334412,160.95,160.91,24.83]
[1721217265550,16.38334412,160.95,160.91,10.0]
[1721217265748,14.83,160.95,160.91,10.0]
[1721217265974,1.55346859,160.94,160.91,10.0]
[1721217266154,16.38346859,160.94,160.91,10.0]
[1721217266354,14.83,160.94,160.91,10.0]
[1721217266548,14.83,160.94,160.92,0.17]
[1721217266744,14.83,160.94,160.92,0.34]
[1721217268857,14.83,160.95,160.92,0.34]
[1721217269059,16.38346967,160.95,160.92,0.34]
[1721217269356,14.83,160.94,160.92,0.34]
[1721217269967,14.83,160.95,160.92,0.34]
[1721217272878,16.38347115,160.96,160.93,10.0]
[1721217273059,14.83,160.96,160.94,0.17]
[1721217273261,16.383287,160.96,160.94,0.34]
[1721217275784,16.38328815,160.95,160.91,10.0]
[1721217275977,14.83,160.94,160.92,0.34]
[1721217277969,16.38328815,160.95,160.92,0.34]
[1721217278171,14.83,160.95,160.92,0.34]
[1721217278378,16.38346833,160.95,160.92,0.34]
[1721217279357,14.83,160.95,160.92,0.34]
[1721217281290,16.38342083,160.96,160.92,0.34]
[1721217283384,16.38342083,160.96,160.93,10.0]
[1721217283582,14.83,160.96,160.94,0.34]
[1721217283775,20.9466,160.97,160.94,0.34]
[1721217284286,1.5532914,160.96,160.94,0.34]
[1721217284687,20.9466,160.97,160.94,0.34]
[1721217284873,1.55329199,160.96,160.94,0.34]
[1721217285577,20.9466,160.97,160.94,0.34]
[1721217286880,16.38319443,160.96,160.94,0.34]
[1721217287081,14.83,160.95,160.94,0.34]
[1721217288372,14.83,160.95,160.91,10.0]
[1721217288579,14.83,160.95,160.92,0.17]
[1721217288780,1.55319443,160.96,160.92,0.34]
[1721217288781,16.38319443,160.96,160.92,0.34]
[1721217289397,1.55337411,160.95,160.92,0.34]
[1721217289783,14.83,160.96,160.92,0.34]
[1721217290077,1.55339961,160.99,160.92,0.34]
[1721217290078,14.83,160.97,160.92,0.34]
[1721217290273,14.83,160.93,160.92,0.17]
[1721217290466,14.83,160.93,160.89,16.49028333]
[1721217290666,16.38365743,160.92,160.86,34.83]